Workbook

Sheet КЖ
A1: № группы | B1: Трасса | D1: Кабель (провод) | K1: 25х16 | L1: 40х25 | M1: гофра 25
B2: Откуда | C2: Куда | D2: По проекту | G2: Проложено
D3: U,В | E3: Марка Кабеля | F3: Количество жил и сечение | G3: Длина, м. | H3: В кабель- канале | I3: В гофр. ПВХ трубе | J3: В мет. рукаве (трубе)
B4: Отходящие линии распределительной панели №1 (РП-1)
A5: П1.1 | B5: Распределительная панель №1 | C5: Щит распределительный ЩР-1 | D5: 380 | E5: ППГнг(А)-HF | F5: 5х6 | G5: 8 | I5: 8 | O5: =SUM(G5:G13) -> 694
A6: П1.2 | B6: Распределительная панель №1 | C6: Щит распределительный ЩР-2 | D6: 380 | E6: ППГнг(А)-HF | F6: 5х6 | G6: 60 | I6: 60
A7: П1.3 | B7: Распределительная панель №1 | C7: Щит распределительный ЩР-3 | D7: 380 | E7: ППГнг(А)-HF | F7: 5х6 | G7: 98 | I7: 98
A8: П1.4 | B8: Распределительная панель №1 | C8: Щит распределительный ЩР-4 | D8: 380 | E8: ППГнг(А)-HF | F8: 5х6 | G8: 64 | H8: 6 | I8: =G8-H8 -> 58
A9: П1.5 | B9: Распределительная панель №1 | C9: Щит распределительный ЩР-5 | D9: 380 | E9: ППГнг(А)-HF | F9: 5х6 | G9: 104 | H9: 6 | I9: =G9-H9 -> 98
A10: П1.6 | B10: Распределительная панель №1 | C10: Щит распределительный ЩР-6 | D10: 380 | E10: ППГнг(А)-HF | F10: 5х6 | G10: 68 | H10: 10 | I10: 58
A11: П1.7 | B11: Распределительная панель №1 | C11: Щит распределительный ЩР-7 | D11: 380 | E11: ППГнг(А)-HF | F11: 5х6 | G11: 108 | H11: 10 | I11: 98
A12: П1.8 | B12: Распределительная панель №1 | C12: Щит распределительный ЩР-8 | D12: 380 | E12: ППГнг(А)-HF | F12: 5х6 | G12: 72 | H12: 14 | I12: 58
A13: П1.9 | B13: Распределительная панель №1 | C13: Щит распределительный ЩР-9 | D13: 380 | E13: ППГнг(А)-HF | F13: 5х6 | G13: 112 | H13: 14 | I13: 98
A14: П1.10 | B14: Распределительная панель №1 | C14: Щит распределительный ЩР-10 | D14: 380 | E14: ППГнг(А)-HF | F14: 5х4 | G14: 70 | H14: 4 | I14: 66
B15: Отходящие линии распределительной панели №2 (РП-2)
A16: П2.1 | B16: Распределительная панель №2 | C16: Вытяжной вентилятор на кровле спортзала | D16: 380 | E16: ППГнг(А)-HF | F16: 5х1,5 | G16: 28 | H16: 4 | J16: 24 | Q16: =SUM(J16:J21) -> 55
A17: П2.2 | B17: Распределительная панель №2 | C17: Вытяжной вентилятор на кровле спортзала | D17: 380 | E17: ППГнг(А)-HF | F17: 5х1,5 | G17: 20 | H17: 4 | J17: 16
A18: П2.3 | B18: Распределительная панель №2 | C18: Приточный вентилятор (пом.13 1этаж) | D18: 220 | E18: ППГнг(А)-HF | F18: 3х2,5 | G18: 22 | H18: 9 | I18: 12 | J18: 1
A19: П2.4 | B19: Распределительная панель №2 | C19: Приточный вентилятор (пом.7 1этаж) | D19: 220 | E19: ППГнг(А)-HF | F19: 3х2,5 | G19: 14 | H19: 6 | I19: 7 | J19: 1
A20: П2.5 | B20: Распределительная панель №2 | C20: Приточный вентилятор (пом.2 1этаж) | D20: 220 | E20: ППГнг(А)-HF | F20: 3х2,5 | G20: 15 | H20: 6 | I20: 8 | J20: 1
A21: П2.6 | B21: Распределительная панель №3 | C21: Вытяжной вентилятор саузлов накровле | D21: 220 | E21: ППГнг(А)-HF | F21: 3х2,5 | G21: 15 | H21: 16 | I21: 4 | J21: 12
A22: П2.7 | B22: Распределительная панель №4 | C22: ЯТП-0,25 электрощитовая | D22: 220 | E22: ППГнг(А)-HF | F22: 3х2,5 | G22: 3 | H22: 3
B23: Отходящие линии ЩАП
A24: ПА1 | B24: Щит аварийного питания ЩАП | C24: Щит аварийного освещения ЩАО-1 | D24: 380 | E24: ППГнг(А)-FRHF | F24: 5х2,5 | G24: 8 | H24: 8
A25: ПА2 | B25: Щит аварийного питания ЩАП | C25: Щиты аварийного освещения левый стояк (ЩАО-2,4,6,8) | D25: 380 | E25: ППГнг(А)-FRHF | F25: 5х2,5 | G25: 107 | H25: 107
A26: ПА3 | B26: Щит аварийного питания ЩАП | C26: Щиты аварийного освещения правый стояк (ЩАО-3,5,7) | D26: 380 | E26: ППГнг(А)-FRHF | F26: 5х2,5 | G26: 115 | H26: 115
B27: Отходящие линии ППУ
A28: П2.13 | B28: Панель противопожарных устройств ППУ | C28: Насос пожарного водопровода №1 подвал | D28: 380 | E28: ППГнг(А)-FRHF | F28: 5х4 | G28: 90 | H28: 74 | I28: 16
A29: П2.14 | B29: Панель противопожарных устройств ППУ | C29: Насос пожарного водопровода №1 подвал | D29: 380 | E29: ППГнг(А)-FRHF | F29: 5х4 | G29: 90 | H29: 74 | I29: 16
A30: П2.15 | B30: Панель противопожарных устройств ППУ | C30: Автоматическая пожарная сигнализация (пост охраны (уточнить по месту) | D30: 220 | E30: ППГнг(А)-FRHF | F30: 3х2,5 | G30: 116 | H30: 116
B31: Отходящие линии ЩР-1 (1этаж)
A32: Гр.1.1 | B32: Щит распределительный ЩР-1 | C32: Розетки пом.2 | D32: 220 | E32: ППГнг(А)-HF | F32: 3х2,5 | G32: 24.01504 | H32: 20.01504 | I32: 4 | L32: 20.01504
A33: Гр.1.2 | B33: Щит распределительный ЩР-1 | C33: Розетка пом.8 | D33: 220 | E33: ППГнг(А)-HF | F33: 3х2,5 | G33: 16.8 | H33: 10 | I33: 6.8 | L33: 10
A34: Гр.1.3 | B34: Щит распределительный ЩР-1 | C34: Розетка пом.9 | D34: 220 | E34: ППГнг(А)-HF | F34: 3х2,5 | G34: 28 | H34: 11 | I34: 17 | L34: 11
A35: Гр.1.4 | B35: Щит распределительный ЩР-1 | C35: Розетки пом.12 | D35: 220 | E35: ППГнг(А)-HF | F35: 3х2,5 | G35: 8.70688 | H35: 2 | I35: 6.70688 | L35: 2
A36: Гр.1.5 | B36: Щит распределительный ЩР-1 | C36: Шкаф телекоммуникационный пом.12 | D36: 220 | E36: ППГнг(А)-HF | F36: 3х2,5 | G36: 5.46784 | H36: 2 | I36: 3.46784 | L36: 2
A37: Гр.1.6 | B37: Щит распределительный ЩР-1 | C37: Освещение пом. 7-11;13 | D37: 220 | E37: ППГнг(А)-HF | F37: 3х1,5 | G37: 47.04 | H37: 30.04 | I37: 17 | K37: 30.04
A38: Гр.1.7 | B38: Щит распределительный ЩР-1 | C38: Освещение пом. 4;5;12;14 | D38: 220 | E38: ППГнг(А)-HF | F38: 3х1,5 | G38: 82.88 | H38: 6 | I38: =G38-H38 -> 76.88 | K38: 16
A39: Гр.1.8 | B39: Щит распределительный ЩР-1 | C39: Освещение пом. 2;3 | D39: 220 | E39: ППГнг(А)-HF | F39: 3х1,5 | G39: 25.76 | H39: 21.76 | I39: 5 | K39: 21.76
A40: Гр.1.9 | B40: Щит распределительный ЩР-2 | C40: Освещение пом.1 | D40: 220 | E40: ППГнг(А)-HF | F40: 3х1,5 | G40: 85.12 | H40: 81.12 | I40: 4 | K40: 81.12
B41: Отходящие линии ЩР-2 (1этаж)
A42: Гр.2.1 | B42: Щит распределительный ЩР-2 | C42: Розетки пом. 38; 40 | D42: 220 | E42: ППГнг(А)-HF | F42: 3х2,5 | G42: 26.88 | H42: =K42+L42+2 -> 8 | I42: =G42-K42-L42-2 -> 18.88 | K42: 6
A43: Гр.2.2 | B43: Щит распределительный ЩР-2 | C43: Розетки пом. 17; 26; 27 | D43: 220 | E43: ППГнг(А)-HF | F43: 3х2,5 | G43: 36.81552 | H43: =K43+L43+2 -> 28.88 | I43: =G43-K43-L43-2 -> 7.93552 | K43: 10 | L43: 16.88
A44: Гр.2.3 | B44: Щит распределительный ЩР-2 | C44: Розетки пом. 35 | D44: 220 | E44: ППГнг(А)-HF | F44: 3х2,5 | G44: 14.336 | H44: 2 | I44: 12.336
A45: Гр.2.4 | B45: Щит распределительный ЩР-2 | C45: Освещение пом. 17; 19; 20; 26; 27 | D45: 220 | E45: ППГнг(А)-HF | F45: 3х1,5 | G45: 61.6 | H45: 58.6 | I45: 3 | K45: 10 | L45: 46.6
A46: Гр.2.5 | B46: Щит распределительный ЩР-2 | C46: Освещение пом. 23 | D46: 220 | E46: ППГнг(А)-HF | F46: 3х1,5 | G46: 61.6 | H46: 2 | I46: 59.6
A47: Гр.2.6 | B47: Щит распределительный ЩР-2 | C47: Освещение пом. 35; 38; 39 | D47: 220 | E47: ППГнг(А)-HF | F47: 3х1,5 | G47: 91.84 | H47: 76.84 | I47: 15 | K47: 74.84
A48: Гр.2.7 | B48: Щит распределительный ЩР-2 | C48: Освещение пом. 40; 41 | D48: 220 | E48: ППГнг(А)-HF | F48: 3х1,5 | G48: 123.2 | H48: 101.2 | I48: 22 | K48: 99.2
A49: Гр.2.8 | B49: Щит распределительный ЩР-2 | C49: Освещение пом. 34(коридор 1 этаж) | D49: 220 | E49: ППГнг(А)-HF | F49: 3х1,5 | G49: 128.8 | H49: 6 | I49: 122.8 | K49: 4
B50: Отходящие линии ЩР-3 (1этаж)
A51: Гр.3.1 | B51: Щит распределительный ЩР-3 | C51: Розетки пом.34; 41; 42 | D51: 220 | E51: ППГнг(А)-HF | F51: 3х2,5 | G51: 54.02432 | H51: 36.02432 | I51: 18 | K51: 34.02432
A52: Гр.3.2 | B52: Щит распределительный ЩР-3 | C52: Розетки пом.34; 44; 46 | D52: 220 | E52: ППГнг(А)-HF | F52: 3х2,5 | G52: 27.66512 | H52: 19.66512 | I52: 8 | K52: 17.66512
A53: Гр.3.3 | B53: Щит распределительный ЩР-3 | C53: Розетки пом. 28 | D53: 220 | E53: ППГнг(А)-HF | F53: 3х2,5 | G53: 28 | H53: 7 | I53: 21 | K53: 3 | L53: 2
A54: Гр.3.4 | B54: Щит распределительный ЩР-3 | C54: Розетки пом.36 | D54: 220 | E54: ППГнг(А)-HF | F54: 3х2,5 | G54: 14.28 | H54: 2 | I54: 12.28
A55: Гр.3.5 | B55: Щит распределительный ЩР-3 | C55: Розетки пом.22 | D55: 220 | E55: ППГнг(А)-HF | F55: 3х2,5 | G55: 16.7216 | H55: 11.7216 | I55: 5 | K55: 9.7216
A56: Гр.3.6 | B56: Щит распределительный ЩР-3 | C56: Розетки пом.18; 22 | D56: 220 | E56: ППГнг(А)-HF | F56: 3х2,5 | G56: 31.77552 | H56: 11.77552 | I56: 20 | K56: 9.77552
A57: Гр.3.7 | B57: Щит распределительный ЩР-3 | C57: Освещение пом.42; 43 | D57: 220 | E57: ППГнг(А)-HF | F57: 3х1,5 | G57: 50.4 | H57: 41.4 | I57: 9 | K57: 39.4
A58: Гр.3.8 | B58: Щит распределительный ЩР-3 | C58: Освещение пом.36; 44; 45; 46 | D58: 220 | E58: ППГнг(А)-HF | F58: 3х1,5 | G58: 58.24 | H58: 36.24 | I58: 22 | K58: 34.24
A59: Гр.3.9 | B59: Щит распределительный ЩР-3 | C59: Освещение пом.22 | D59: 220 | E59: ППГнг(А)-HF | F59: 3х1,5 | G59: 44.8 | H59: 6 | I59: 38.8 | K59: 4
A60: Гр.3.10 | B60: Щит распределительный ЩР-3 | C60: Освещение пом.18; 21; 24; 28; 29 | D60: 220 | E60: ППГнг(А)-HF | F60: 3х1,5 | G60: 58.24 | H60: 12 | I60: 46.24 | K60: 10
B61: Отходящие линии ЩР-4(2 этаж)
A62: Гр.4.1 | B62: Щит распределительный ЩР-4 | C62: Розетки пом. 1; 3; 9 | D62: 220 | E62: ППГнг(А)-HF | F62: 3х2,5 | G62: 55.58 | H62: 55.58 | K62: 12 | L62: 43.58
A63: Гр.4.2 | B63: Щит распределительный ЩР-4 | C63: Розетки пом.5 | D63: 220 | E63: ППГнг(А)-HF | F63: 3х2,5 | G63: 15 | H63: 12 | I63: 3
A64: Гр.4.3 | B64: Щит распределительный ЩР-4 | C64: Розетки пом. 8 | D64: 220 | E64: ППГнг(А)-HF | F64: 3х2,5 | G64: 28.92848 | H64: 28.92848 | K64: 10 | L64: 6.92848
A65: Гр.4.4 | B65: Щит распределительный ЩР-4 | C65: Розетки пом.12; 13 | D65: 220 | E65: ППГнг(А)-HF | F65: 3х2,5 | G65: 52.15952 | H65: 52.15952 | K65: 21 | L65: 19.15952
A66: Гр.4.5 | B66: Щит распределительный ЩР-4 | C66: Освещение пом.4; 9 | D66: 220 | E66: ППГнг(А)-HF | F66: 3х1,5 | G66: 56 | H66: 56 | L66: 56
A67: Гр.4.6 | B67: Щит распределительный ЩР-4 | C67: Освещение пом.1; 2; 3; 10 | D67: 220 | E67: ППГнг(А)-HF | F67: 3х1,5 | G67: 62.72 | H67: 62.72 | I67: 38.72 | K67: 10 | L67: 14
A68: Гр.4.7 | B68: Щит распределительный ЩР-4 | C68: Освещение пом.5; 6; 7; 8 | D68: 220 | E68: ППГнг(А)-HF | F68: 3х1,5 | G68: 76.16 | H68: 76.16 | K68: 62.16
A69: Гр.4.8 | B69: Щит распределительный ЩР-4 | C69: Освещение пом.12 | D69: 220 | E69: ППГнг(А)-HF | F69: 3х1,5 | G69: 44.8 | H69: 44.8 | K69: 36.8
A70: Гр.4.9 | B70: Щит распределительный ЩР-4 | C70: Освещение пом.13 | D70: 220 | E70: ППГнг(А)-HF | F70: 3х1,5 | G70: 51.52 | H70: 51.52 | K70: 38.52
A71: Гр.4.10 | B71: Щит распределительный ЩР-4 | C71: Освещение пом.4(коридор 2эт) | D71: 220 | E71: ППГнг(А)-HF | F71: 3х1,5 | G71: 128.8 | H71: 6 | I71: 122.8 | K71: 4
B72: Отходящие линии ЩР-5 (2 этаж)
A73: Гр.5.1 | B73: Щит распределительный ЩР-5 | C73: Розетки пом.4; 14; 15 | D73: 220 | E73: ППГнг(А)-HF | F73: 3х2,5 | G73: 43.46944 | H73: 43.46944 | K73: 10 | L73: 25.46944
A74: Гр.5.2 | B74: Щит распределительный ЩР-5 | C74: Розетки пом.16; 17 | D74: 220 | E74: ППГнг(А)-HF | F74: 3х2,5 | G74: 32.78016 | H74: 32.78016 | K74: 12 | L74: 8.78016
A75: Гр.5.3 | B75: Щит распределительный ЩР-5 | C75: Розетки пом.23 | D75: 220 | E75: ППГнг(А)-HF | F75: 3х2,5 | G75: 14.60816 | H75: 11.60816 | I75: 3
A76: Гр.5.4 | B76: Щит распределительный ЩР-5 | C76: Розетки пом.4; 18; 21 | D76: 220 | E76: ППГнг(А)-HF | F76: 3х2,5 | G76: 48.22384 | H76: 48.22384 | K76: 20
A77: Гр.5.5 | B77: Щит распределительный ЩР-5 | C77: Освещение пом.14;15 | D77: 220 | E77: ППГнг(А)-HF | F77: 3х1,5 | G77: 53.76 | H77: 53.76 | K77: 33.76
A78: Гр.5.6 | B78: Щит распределительный ЩР-5 | C78: Освещение пом.16 | D78: 220 | E78: ППГнг(А)-HF | F78: 3х1,5 | G78: 48.16 | H78: 48.16 | K78: 38.16
A79: Гр.5.7 | B79: Щит распределительный ЩР-5 | C79: Освещение пом.17; 23; 24 | D79: 220 | E79: ППГнг(А)-HF | F79: 3х1,5 | G79: 58.24 | H79: 50.24 | I79: 8 | K79: 37.24
A80: Гр.5.8 | B80: Щит распределительный ЩР-5 | C80: Освещение пом.4; 18 | D80: 220 | E80: ППГнг(А)-HF | F80: 3х1,5 | G80: 53.76 | H80: 53.76 | K80: 47.76 | L80: 6
A81: Гр.5.9 | B81: Щит распределительный ЩР-5 | C81: Освещение пом.19;21;22 | D81: 220 | E81: ППГнг(А)-HF | F81: 3х1,5 | G81: 51.52 | H81: 29.52 | I81: 22 | K81: 23.52 | L81: 6
B82: Отходящие линии ЩР-6 (3 этаж)
A83: Гр.6.1 | B83: Щит распределительный ЩР-6 | C83: Розетки пом.5 | D83: 220 | E83: ППГнг(А)-HF | F83: 3х2,5 | G83: 14.66304 | H83: 2 | I83: =G83-K83-L83-2 -> 12.66304
A84: Гр.6.2 | B84: Щит распределительный ЩР-6 | C84: Розетки пом. 7 | D84: 220 | E84: ППГнг(А)-HF | F84: 3х2,5 | G84: 28.92848 | H84: =K84+L84+2 -> 18.92848 | I84: =G84-K84-L84-2 -> 10 | K84: 10 | L84: 6.92848
A85: Гр.6.3 | B85: Щит распределительный ЩР-6 | C85: Розетки пом.12; 13 | D85: 220 | E85: ППГнг(А)-HF | F85: 3х2,5 | G85: 53 | H85: =K85+L85+2 -> 43 | I85: =G85-K85-L85-2 -> 10 | K85: 21 | L85: 20
A86: Гр.6.4 | B86: Щит распределительный ЩР-6 | C86: Розетки пом.2; 3 | D86: 220 | E86: ППГнг(А)-HF | F86: 3х2,5 | G86: 43.8592 | H86: 44 | K86: 20 | L86: 23.8592
A87: Гр.6.5 | B87: Щит распределительный ЩР-6 | C87: Розетки пом.1; 8; 9 | D87: 220 | E87: ППГнг(А)-HF | F87: 3х2,5 | G87: 49.4984 | H87: 49 | K87: 20 | L87: 29.4984
A88: Гр.6.6 | B88: Щит распределительный ЩР-6 | C88: Освещение пом.8; 9 | D88: 220 | E88: ППГнг(А)-HF | F88: 3х1,5 | G88: 63.84 | H88: 55.84 | I88: 8 | K88: 53.84
A89: Гр.6.7 | B89: Щит распределительный ЩР-6 | C89: Освещение пом.1; 2; 3 | D89: 220 | E89: ППГнг(А)-HF | F89: 3х1,5 | G89: 60.48 | H89: 25 | I89: 35.48 | K89: 23
A90: Гр.6.8 | B90: Щит распределительный ЩР-6 | C90: Освещение пом.5; 6; 7 | D90: 220 | E90: ППГнг(А)-HF | F90: 3х1,5 | G90: 76.16 | H90: 64.16 | I90: 12 | K90: 62.16
A91: Гр.6.9 | B91: Щит распределительный ЩР-6 | C91: Освещение пом.12 | D91: 220 | E91: ППГнг(А)-HF | F91: 3х1,5 | G91: 44.8 | H91: 38.8 | I91: 6 | K91: 36.8
A92: Гр.6.10 | B92: Щит распределительный ЩР-6 | C92: Освещение пом.13 | D92: 220 | E92: ППГнг(А)-HF | F92: 3х1,5 | G92: 51.52 | H92: 40.52 | I92: 11 | K92: 38.52
A93: Гр.6.11 | B93: Щит распределительный ЩР-6 | C93: Освещение пом.4(коридор 3эт) | D93: 220 | E93: ППГнг(А)-HF | F93: 3х1,5 | G93: 128.8 | H93: 6 | I93: 122.8 | K93: 4
B94: Отходящие линии ЩР-7 (3 этаж)
A95: Гр.7.1 | B95: Щит распределительный ЩР-7 | C95: Розетки пом.14; 15 | D95: 220 | E95: ППГнг(А)-HF | F95: 3х2,5 | G95: 44.84032 | H95: =K95+L95+2 -> 26.84032 | I95: =G95-K95-L95-2 -> 18 | K95: 11 | L95: 13.84032
A96: Гр.7.2 | B96: Щит распределительный ЩР-7 | C96: Розетки пом.16 | D96: 220 | E96: ППГнг(А)-HF | F96: 3х2,5 | G96: 29 | H96: =K96+L96+2 -> 19 | I96: =G96-K96-L96-2 -> 10 | K96: 10 | L96: 7
A97: Гр.7.3 | B97: Щит распределительный ЩР-7 | C97: Розетки пом.20 | D97: 220 | E97: ППГнг(А)-HF | F97: 3х2,5 | G97: 14.61488 | H97: 2 | I97: 12.61488
A98: Гр.7.4 | B98: Щит распределительный ЩР-7 | C98: Розетки пом.18 | D98: 220 | E98: ППГнг(А)-HF | F98: 3х2,5 | G98: 44.67344 | H98: 32.67344 | I98: 12 | K98: 20 | L98: 10.67344
A99: Гр.7.5 | B99: Щит распределительный ЩР-7 | C99: Освещение пом.14 | D99: 220 | E99: ППГнг(А)-HF | F99: 3х1,5 | G99: 57.12 | H99: 39.12 | I99: 18 | K99: 37.12
A100: Гр.7.6 | B100: Щит распределительный ЩР-7 | C100: Освещение пом.15 | D100: 220 | E100: ППГнг(А)-HF | F100: 3х1,5 | G100: 48.16 | H100: 40.16 | I100: 8 | K100: 38.16
A101: Гр.7.7 | B101: Щит распределительный ЩР-7 | C101: Освещение пом.16; 20; 21 | D101: 220 | E101: ППГнг(А)-HF | F101: 3х1,5 | G101: 58.24 | H101: 39.24 | I101: 19 | K101: 37.24
A102: Гр.7.8 | B102: Щит распределительный ЩР-7 | C102: Освещение пом.17; 18; 22 | D102: 220 | E102: ППГнг(А)-HF | F102: 3х1,5 | G102: 78.4 | H102: 40.4 | I102: 38 | K102: 38.4
B103: Отходящие линии ЩР-8 (4 этаж)
A104: Гр.8.1 | B104: Щит распределительный ЩР-8 | C104: Розетки пом.2 | D104: 220 | E104: ППГнг(А)-HF | F104: 3х2,5 | G104: 14.61488 | H104: 11.61488 | I104: 3
A105: Гр.8.2 | B105: Щит распределительный ЩР-8 | C105: Розетки пом1; 7 | D105: 220 | E105: ППГнг(А)-HF | F105: 3х2,5 | G105: 31.80016 | H105: 31.80016 | K105: 27.80016 | L105: 4
A106: Гр.8.3 | B106: Щит распределительный ЩР-8 | C106: Розетки пом1; 10; 11 | D106: 220 | E106: ППГнг(А)-HF | F106: 3х2,5 | G106: 23.35088 | H106: 23.35088 | K106: 18.35088
A107: Гр.8.4 | B107: Щит распределительный ЩР-8 | C107: Розетки пом1; 11; 12; 13 | D107: 220 | E107: ППГнг(А)-HF | F107: 3х2,5 | G107: 54.79712 | H107: 54.79712 | K107: 27.79712 | L107: 8
A108: Гр.8.5 | B108: Щит распределительный ЩР-8 | C108: Освещение пом.2; 3; 4; 5; 6; 7 | D108: 220 | E108: ППГнг(А)-HF | F108: 3х1,5 | G108: 73.92 | H108: 73.92 | K108: 59.92
A109: Гр.8.6 | B109: Щит распределительный ЩР-8 | C109: Освещение пом.10; 11; | D109: 220 | E109: ППГнг(А)-HF | F109: 3х1,5 | G109: 47.04 | H109: 47.04 | K109: 34.04
A110: Гр.8.7 | B110: Щит распределительный ЩР-8 | C110: Освещение пом.12,13 | D110: 220 | E110: ППГнг(А)-HF | F110: 3х1,5 | G110: 47.04 | H110: 47.04 | K110: 32.04
A111: Гр.8.8 | B111: Щит распределительный ЩР-8 | C111: Освещение пом.1(коридор 4эт) | D111: 220 | E111: ППГнг(А)-HF | F111: 3х1,5 | G111: 128.8 | H111: 6 | I111: 122.8 | K111: 6
A112: Гр.8.9 | B112: Щит распределительный ЩР-8 | C112: Освещение пом.9 | D112: 220 | E112: ППГнг(А)-HF | F112: 3х1,5 | G112: 13.44 | H112: 13.44 | K112: 13.44
A113: Гр.8.10 | B113: Щит распределительный ЩР-8 | C113: Освещение пом.чердак леваясторона | D113: 220 | E113: ППГнг(А)-HF | F113: 3х1,5 | G113: 50 | H113: 14 | I113: 36 | K113: 2
B114: Отходящие линии ЩР-9 -IV (4 этаж)
A115: Гр.9.1 | B115: Щит распределительный ЩР-9 | C115: Розетки пом. 1; 14; 15 | D115: 220 | E115: ППГнг(А)-HF | F115: 3х2,5 | G115: 51.29824 | H115: =G115-I115 -> 46.29824 | I115: 5 | K115: 33.29824
A116: Гр.9.2 | B116: Щит распределительный ЩР-9 | C116: Розетки пом. 15; 16; 17; 18 | D116: 220 | E116: ППГнг(А)-HF | F116: 3х2,5 | G116: 35.8456 | H116: =G116-I116 -> 22.8456 | I116: 13 | K116: 25.8456
A117: Гр.9.3 | B117: Щит распределительный ЩР-9 | C117: Розетки пом. 18; 19; 20 | D117: 220 | E117: ППГнг(А)-HF | F117: 3х2,5 | G117: 28.62832 | H117: =G117-I117 -> 22.62832 | I117: 6 | K117: 23.62832
A118: Гр.9.4 | B118: Щит распределительный ЩР-9 | C118: Розетки пом. 23 | D118: 220 | E118: ППГнг(А)-HF | F118: 3х2,5 | G118: 24.64 | H118: =K118+L118+2 -> 20.64 | I118: 12 | K118: 18.64
A119: Гр.9.5 | B119: Щит распределительный ЩР-9 | C119: Розетки пом. 24 | D119: 220 | E119: ППГнг(А)-HF | F119: 3х2,5 | G119: 19.04 | H119: 4 | I119: =G119-H119 -> 15.04 | K119: 5.04 | L119: 12
A120: Гр.9.6 | B120: Щит распределительный ЩР-9 | C120: Освещение пом. 14; 15; | D120: 220 | E120: ППГнг(А)-HF | F120: 3х1,5 | G120: 57.12 | H120: =G120-I120 -> 52.12 | I120: 5 | K120: 37.12
A121: Гр.9.7 | B121: Щит распределительный ЩР-9 | C121: Освещение пом. 16-18 | D121: 220 | E121: ППГнг(А)-HF | F121: 3х1,5 | G121: 42.56 | H121: =G121-I121 -> 37.56 | I121: 5 | K121: 32.56
A122: Гр.9.8 | B122: Щит распределительный ЩР-9 | C122: Освещение пом. 20;23; 24; 25; 26 | D122: 220 | E122: ППГнг(А)-HF | F122: 3х1,5 | G122: 73 | H122: =K122+L122+2 -> 72.8 | I122: 5 | K122: 58.8 | L122: 12
A123: Гр.9.9 | B123: Щит распределительный ЩР-9 | C123: Освещение пом. 21 | D123: 220 | E123: ППГнг(А)-HF | F123: 3х1,5 | G123: 14 | H123: 14 | I123: 0 | K123: 13.44
A124: Гр.9.10 | B124: Щит распределительный ЩР-9 | C124: Освещение чердак правая сторона | D124: 220 | E124: ППГнг(А)-HF | F124: 3х1,5 | G124: 50 | H124: 4 | I124: =G124-K124-L124-2 -> 46 | K124: 2
B125: Отходящие линии ЩР-10-П (подвал)
A126: Гр.10.1 | B126: Щит распределительный ЩР-10-П | C126: Розетки пом. 1; 14; 15 | D126: 220 | E126: ППГнг(А)-HF | F126: 3х1,5 | G126: 64.96 | I126: 64.96
A127: Гр.10.2 | B127: Щит распределительный ЩР-10-П | C127: Розетки пом. 15; 16; 17; 18 | D127: 220 | E127: ППГнг(А)-HF | F127: 3х1,5 | G127: 71.68 | I127: 71.68
A128: Гр.10.3 | B128: Щит распределительный ЩР-10-П | C128: Розетки пом. 18; 19; 20 | D128: 220 | E128: ППГнг(А)-HF | F128: 3х1,5 | G128: 118.72 | I128: 118.72
A129: Гр.10.4 | B129: Щит распределительный ЩР-10-П | C129: Розетки пом. 23 | D129: 220 | E129: ППГнг(А)-HF | F129: 3х1,5 | G129: 86.24 | I129: 86.24
A130: Гр.10.5 | B130: Щит распределительный ЩР-10-П | C130: Розетки пом. 24 | D130: 220 | E130: ППГнг(А)-HF | F130: 3х1,5 | G130: 132.16 | I130: 132.16
B131: Отходящие линии ЩАО-1 (1 этаж)
A132: Гр.1.1А | B132: Щит аварийного освещения ЩАО-1 | C132: Авар.освещение пом.1 | D132: 220 | E132: ППГнг(А)-FRHF | F132: 3х1,5 | G132: 50.4 | H132: 47.4 | I132: 3
A133: Гр.1.2А | B133: Щит аварийного освещения ЩАО-1 | C133: Авар.освещение пом 5;6;12;14 | D133: 220 | E133: ППГнг(А)-FRHF | F133: 3х1,5 | G133: 82.88 | H133: 52.88 | I133: 30
B134: Отходящие линии ЩАО-2(1 этаж)
A135: Гр.2.1А | B135: Щит аварийного освещения ЩАО-2 | C135: Авар. освещение пом.15; 23; 34 | D135: 220 | E135: ППГнг(А)-FRHF | F135: 3х1,5 | G135: 58.24 | H135: 54.24 | I135: 4 | K135: 10
A136: Гр.2.2А | B136: Щит аварийного освещения ЩАО-2 | C136: Авар. освещение пом.30; 32; 11(2эт,); 10(3эт,); 8(4эт,) | D136: 220 | E136: ППГнг(А)-FRHF | F136: 3х1,5 | G136: 56 | H136: 8 | I136: 48 | K136: 2
A137: Гр.2.3А | B137: Щит аварийного освещения ЩАО-2 | C137: Освещение крыльца, табло выход левая сторона | D137: 220 | E137: ППГнг(А)-FRHF | F137: 3х1,5 | G137: 47.04 | H137: 8 | I137: 39.04 | K137: 2
A138: Гр.2.4А | B138: Щит аварийного освещения ЩАО-2 | C138: Авар. освещение пом.34(коридор) | D138: 220 | E138: ППГнг(А)-FRHF | F138: 3х1,5 | G138: 96.32 | H138: 6 | I138: 90.32 | K138: 6
B139: Отходящие линии ЩАО-3(1 этаж)
A140: Гр.3.1А | B140: Щит аварийного освещения ЩАО-3 | C140: Табло выход, освещние крыльца правая сторона | D140: 220 | E140: ППГнг(А)-FRHF | F140: 3х1,5 | G140: 42 | H140: 10 | I140: 32 | K140: 4
A141: Гр.3.2А | B141: Щит аварийного освещения ЩАО-3 | C141: Авар. Освещение 31; 33 (1эт); 20(2эт); 19(3эт); 22(4эт) | D141: 220 | E141: ППГнг(А)-FRHF | F141: 3х1,5 | G141: 67 | H141: 8 | I141: 59 | K141: 6
A142: Гр.3.3А | B142: Щит аварийного освещения ЩАО-3 | C142: Авар. Освещение 16; улица | D142: 220 | E142: ППГнг(А)-FRHF | F142: 3х1,5 | G142: 35.84 | H142: 2 | I142: 25.84 | K142: 8
A143: Гр.3.4А | B143: Щит аварийного освещения ЩАО-3 | C143: Авар. Освещение 22; 24; 25; улица | D143: 220 | E143: ППГнг(А)-FRHF | F143: 3х1,5 | G143: 56 | H143: 2 | I143: 46 | K143: 8
B144: Отходящие линии ЩАО-4 (2 этаж)
A145: Гр.4.1А | B145: Щит аварийного освещения ЩАО-4 | C145: Авар.освещение пом. 4; табло выход | D145: 220 | E145: ППГнг(А)-FRHF | F145: 3х1,5 | G145: 12.32 | H145: 12.32 | K145: 6
A146: Гр.4.2А | B146: Щит аварийного освещения ЩАО-4 | C146: Авар.освещение пом. 4(коридор 2эт) | D146: 220 | E146: ППГнг(А)-FRHF | F146: 3х1,5 | G146: 112 | H146: 6 | I146: 106 | K146: 6
B147: Отходящие линии ЩАО-5 (2 этаж)
A148: Гр.5.1А | B148: Щит аварийного освещения ЩАО-5 | C148: Авар.освещение пом. 4; табло выход | D148: 220 | E148: ППГнг(А)-FRHF | F148: 3х1,5 | G148: 16 | H148: 16 | K148: 6
B149: Отходящие линии ЩАО-6 (3 этаж)
A150: Гр.6.1А | B150: Щит аварийного освещения ЩАО-6 | C150: Авар.освещение пом.11; табло выход | D150: 220 | E150: ППГнг(А)-FRHF | F150: 3х1,5 | G150: 12.32 | H150: 12.32 | K150: 6
A151: Гр.6.2А | B151: Щит аварийного освещения ЩАО-6 | C151: Авар.освещение пом. 4(коридор 3эт) | D151: 220 | E151: ППГнг(А)-FRHF | F151: 3х1,5 | G151: 112 | H151: 6 | I151: 106 | K151: 6
B152: Отходящие линии ЩАО-7 (3 этаж)
A153: Гр.7.1А | B153: Щит аварийного освещения ЩАО-7 | C153: Авар.освещение пом.4; 18; табло выход | D153: 220 | E153: ППГнг(А)-FRHF | F153: 3х1,5 | G153: 40 | H153: 27 | I153: 13 | K153: 2
B154: Отходящие линии ЩАО-8 (4 этаж)
A155: Гр.8.1А | B155: Щит аварийного освещения ЩАО-8 | C155: Авар.совещение пом.1(коридор 4эт) | D155: 220 | E155: ППГнг(А)-FRHF | F155: 3х1,5 | G155: 112 | H155: 6 | I155: 106 | K155: 6
B156: Линии системы уравнивания потенциалов
A157: ЛСУП | B157: Контур системы уравнивания потенциалов электрощитовой | C157: Коробка уравнивания потенциалов (подвал) | F157: 1х16 | G157: 60 | H157: 50 | I157: 10
A158: ЛСУП1 | B158: Контур системы уравнивания потенциалов электрощитовой | C158: Токопроводящие элементы водопровода | F158: 1X2,5 | G158: 10 | H158: 2 | I158: 8
A159: ЛСУП2 | B159: Контур системы уравнивания потенциалов электрощитовой | C159: Токопроводящие элементы водопровода | F159: 1X2,5 | G159: 10 | H159: 2 | I159: 8
A160: ЛСУП3 | B160: Коробка уравнивания потенциалов (подвал) | C160: Токопроводящие элементы водопровода | F160: 1X2,5 | G160: 10 | I160: =G160 -> 10
A161: ЛСУП4 | B161: Коробка уравнивания потенциалов (подвал) | C161: Токопроводящие элементы водопровода | F161: 1X2,5 | G161: 10 | I161: =G161 -> 10
A162: ЛСУП5 | B162: Коробка уравнивания потенциалов (подвал) | C162: Токопроводящие элементы водопровода | F162: 1X2,5 | G162: 30 | I162: 30
A163: ЛСУП6 | B163: Коробка уравнивания потенциалов (подвал) | C163: Токопроводящие элементы водопровода | F163: 1X2,5 | G163: 12 | I163: 12
G164: =SUM(G158:G163) -> 82
H166: =SUM(H5:H163) -> 3659.40864 | I166: =SUM(I5:I163) -> 3470.60416 | J166: =SUM(J16:J21) -> 55 | K166: =SUM(K3:K163) -> 1968.70688 | L166: =SUM(L3:L163) -> 444.21248
H168: скобы 25 | I168: =55+I166 -> 3525.60416
H169: дюбель | I169: =(I168+K166+L166)*2 -> 11877.04704
I172: =I166+J166+K166+L166 -> 5938.52352

Sheet ГРЩ
B1: Общие данные | H1: Ввод | P1: Источник
B2: Шифр проекта | C2: РД-176.ЭОМ | H2: Рубиль ник | I2: Наличие | K2: ДА | P2: Наименование | S2: ВРУ секция 2
B3: Название проекта | C3: Объект 1 | I3: Марка | K3: ВН-32-363
I4: Номинал | K4: 63 | P4: Номинал автомата | S4: 25
I5: Примечание | K5: С возможностью опломбирования | P5: Кабель | Q5: Марка | S5: ППГнгА-HF
B6: Раздел | C6: Силовое оборудование и электроосвещение | Q6: Кол-во жил | S6: 5
H7: Автомат | I7: Наличие | K7: НЕТ | Q7: Сечение | S7: 4
B8: Название щита | C8: ЩС-1-I | I8: Марка | K8: =model ->  | Q8: Длина м | S8: 20
B9: Стадия | C9: РД | I9: Номинал | K9: =I_nom -> 
B10: Номер листа | C10: 1 | I10: Примечание | P10: Перекос Фаз
B11: Разработал | C11: Чепурной | P11: Фаза | Q11: Ток | R11: Средний | S11: Перекос
B12: Контроль | C12: Резяпкин | H12: Счетчик | I12: Наличие | K12: НЕТ | P12: L1 | Q12: =SUMIF(L24:L457,"L1",J24:J457) -> 0 | R12: =(Q12+Q13+Q14)/3+Q15 ->  | S12: =((Q12+Q15)-R12)/R12 -> 
B13: Утвердил | C13: Потапов | I13: Марка | K13: Меркурий 236 ART | P13: L2 | Q13: =SUMIF(L24:L457,"L2",J24:J457) -> 0 | S13: =((Q13+Q15)-R12)/R12 -> 
B14: Дата | C14: 09.05 | I14: Номинал | K14: 380/220В 5/60A | P14: L3 | Q14: =SUMIF(L24:L457,"L3",J24:J457) -> 0 | S14: =((Q14+Q15)-R12)/R12 -> 
B15: Кабель для групп | C15: ППГнгА-HF | I15: Примечание | K15: Счетчик запрограммировать в однотарифный режим | P15: L1L2L3 | Q15: =SUMIF(L24:L457,"L1L2L3",J24:J457) -> 
A20: Потребитель | C20: Расчетная нагрузка | K20: Тип потребителя | L20: Автомат | P20: УЗО | S20: Кабель
A21: Номер группы | B21: Наименование | C21: P уст., кВт | D21: Коэф-т спроса | E21: cos φ | F21: tg φ | G21: Р акт., кВт | H21: Q, кВАр | I21: S, кВА | J21: I расч., А | L21: Фаза | M21: Номинал | N21: Модель | O21: Тип | P21: Номинал | Q21: Ток утечки | R21: Модель | S21: Длина падения м | T21: Сечение | U21: Падение напр. % | V21: Длина общая м
B23: Итого на щит | C23: =SUM(C24:C37) ->  | D23: 0.63 | E23: =COS(ATAN(F23)) ->  | F23: =SUM(H24:H457)/SUM(G24:G457) ->  | G23: =C23*D23 ->  | H23: =F23*G23 ->  | I23: =SQRT(G23^2+H23^2) ->  | J23: =IF(L23="L1L2L3",I23/0.66,I23/0.22) ->  | L23: L1L2L3 | M23: 100 | N23: ВН-32-363
A24: П1 | B24: ЩР-1-I | C24: =#REF! ->  | D24: =#REF! ->  | E24: =#REF! ->  | F24: =TAN(ACOS(E24)) ->  | K24: К | L24: L1L2L3 | M24: 25 | N24: ВМ63-3В25 | O24: АВТ | S24: 8 | T24: 4 | U24: =IF(L24="L1L2L3",0.0125*G24*S24/T24,0.0756*G24*S24/T24) ->  | V24: 8
A25: П2 | B25: ЩР-2-I | C25: 4.76 | D25: 0.75 | E25: 0.9 | F25: =TAN(ACOS(E25)) -> 0.4843221048 | G25: 3.57 | H25: 1.729029914 | I25: 3.966666667 | J25: 6.01010101 | K25: К | L25: L1L2L3 | M25: 25 | N25: ВМ63-3В25 | O25: АВТ | S25: 60 | T25: 4 | U25: 0.669375 | V25: 60
A26: П3 | B26: ЩР-3-I | C26: 4.76 | D26: 0.75 | E26: 0.9 | F26: =TAN(ACOS(E26)) -> 0.4843221048 | G26: 3.57 | H26: 1.729029914 | I26: 3.966666667 | J26: 6.01010101 | K26: К | L26: L1L2L3 | M26: 25 | N26: ВМ63-3В25 | O26: АВТ | S26: 98 | T26: 4 | U26: 1.0933125 | V26: 98
A27: П4 | B27: ЩР-4-II | C27: 5.76 | D27: 0.79 | E27: 0.9 | F27: =TAN(ACOS(E27)) -> 0.4843221048 | G27: 4.5504 | H27: 2.203859306 | I27: 5.056 | J27: 7.660606061 | K27: К | L27: L1L2L3 | M27: 25 | N27: ВМ63-3В25 | O27: АВТ | S27: 64 | T27: 4 | U27: 0.91008 | V27: 64
A28: П5 | B28: ЩР-5-II | C28: 4.98 | D28: 0.81 | E28: 0.9 | F28: =TAN(ACOS(E28)) -> 0.4843221048 | G28: 4.0338 | H28: 1.953658506 | I28: 4.482 | J28: 6.790909091 | K28: К | L28: L1L2L3 | M28: 25 | N28: ВМ63-3В25 | O28: АВТ | S28: 104 | T28: 4 | U28: 1.310985 | V28: 104
A29: П6 | B29: ЩР-6-III | C29: 6.54 | D29: 0.82 | E29: 0.91 | F29: 0.4556134603 | G29: 5.3628 | H29: 2.443363865 | I29: 5.893186813 | J29: 8.929070929 | K29: К | L29: L1L2L3 | M29: 25 | N29: ВМ63-3В25 | O29: АВТ | S29: 68 | T29: 4 | U29: 1.139595 | V29: 68
A30: П7 | B30: ЩР-7-III | C30: =#REF! ->  | D30: =#REF! ->  | E30: =#REF! ->  | K30: К | L30: L1L2L3 | M30: 25 | N30: ВМ63-3В25 | O30: АВТ | S30: 108 | T30: 4 | V30: 108
A31: П8 | B31: ЩР-8-IV | C31: =#REF! ->  | D31: =#REF! ->  | E31: =#REF! ->  | K31: К | L31: L1L2L3 | M31: 25 | N31: ВМ63-3В25 | O31: АВТ | S31: 72 | T31: 4 | V31: 72
A32: П9 | B32: ЩР-9-IV | C32: =#REF! ->  | D32: =#REF! ->  | E32: =#REF! ->  | K32: К | L32: L1L2L3 | M32: 25 | N32: ВМ63-3В25 | O32: АВТ | S32: 112 | T32: 4 | V32: 112
A33: П10 | B33: ЩР-10-П | C33: =#REF! ->  | D33: =#REF! ->  | E33: =#REF! ->  | K33: К | L33: L1L2L3 | M33: 63 | N33: ВМ63-3С63 | O33: АВТ | S33: 70 | T33: 2.5 | V33: 70
A34: П11 | D34: 1 | E34: 0.95 | F34: 0.3286841052 | G34: 0 | H34: 0 | I34: 0 | J34: 0 | K34: К | L34: L1L2L3 | M34: 13 | N34: ВМ63-1B16 | O34: АВТ | T34: 1.5 | U34: 0
A35: П12 | D35: 1 | E35: 0.95 | F35: =TAN(ACOS(E35)) -> 0.3286841052 | G35: 0 | H35: 0 | I35: 0 | J35: 0 | K35: К | L35: L1L2L3 | M35: 14 | N35: ВМ63-1B16 | O35: АВТ | T35: 1.5 | U35: 0
A36: П13 | C36: 0.25 | D36: 1 | E36: 0.95 | F36: =TAN(ACOS(E36)) -> 0.3286841052 | G36: 0.25 | H36: 0.08217102629 | I36: 0.2631578947 | J36: 0.3987240829 | K36: К | L36: L1L2L3 | M36: 15 | N36: ВМ63-1B16 | O36: АВТ | S36: 3 | T36: 1.5 | U36: 0.00625 | V36: 3
A38: резерв
A39: резерв
B43: Ру ав.осв. | C43: =#REF!+#REF!+#REF!+#REF!+#REF!+#REF!+#REF!+#REF!+#REF!+#REF! ->  | D43: 1 | K43: 5Х4 | L43: 5Х2,5 | M43: 3Х2,5 | N43: 3Х1,5 | S43: 2.5 | T43: 1.5
B44: Pу р.осв. | C44: =#REF!+#REF!+#REF!+#REF!+#REF!+#REF!+#REF!+#REF!+#REF!+#REF! ->  | D44: 0.9 | K44: =SUM(S24:S32) -> 694 | L44: =SUM(T33) -> 2.5 | M44: 70 | N44: 50 | S44: =#REF!+#REF!+#REF!+#REF!+#REF!+#REF!+#REF!+#REF!+#REF! ->  | T44: =#REF!+#REF!+#REF!+#REF!+#REF!+#REF!+#REF!+#REF!+#REF!+#REF! -> 
B45: Ру. роз. | C45: =SUM(C24:C36)-30-C44-C43 ->  | K45: =K44+180 -> 874 | M45: =M49 ->  | N45: 4450
B46: Ру. Сил.об | C46: 30 | M46: 116 | N46: =N45+N44 -> 4500 | T46: =T44-4450 -> 
M47: =M44+M45+M46 -> 
M49: =#REF!+#REF!+#REF!+#REF!+#REF!+#REF!+#REF!+#REF!+#REF!+#REF!+#REF!+#REF!+#REF!+#REF!+#REF!+#REF!+#REF!+#REF!+#REF!+#REF!+#REF!+#REF!+#REF!+#REF!+#REF!+#REF!+#REF!+#REF!+#REF!+#REF!+#REF!+#REF!+#REF!+#REF!+#REF!+#REF!+#REF!+#REF!+#REF!+#REF! -> 
T50: =SUM(#REF!) -> 

Sheet Param (hidden)
A1: L1 | B1: АВТ | C1: Р | D1: ДА
A2: L2 | B2: ДИФ | C2: Л | D2: НЕТ
A3: L3 | B3: УЗО | C3: К
A4: L1L2L3

Sheet Лист3
A1: Группа | B1: потребитель | C1: КОЛ-ВО | D1: МОЩНОСТЬ | E1: Мощность ед.
A2: 1.1 | B2: свет | C2: 2 | D2: =C2*E2 -> 0.07 | E2: 0.035
A3: 1.1 | B3: свет | C3: 3 | D3: =C3*E3 -> 0.105 | E3: 0.035 | G3: Группа | H3: потребитель | I3: Сумма по полю КОЛ-ВО | J3: Сумма по полю МОЩНОСТЬ
A4: 1.3 | B4: свет | C4: 4 | D4: 0.14 | E4: 0.035 | G4: 1.1 | H4: свет | I4: 5 | J4: 0.175
A5: 1.4 | B5: свет | C5: 1 | D5: 0.08 | E5: 0.08 | G5: 1.10 | H5: розетки | I5: 3 | J5: 0.18
A6: 1.5 | B6: розетки | C6: 3 | D6: 0.18 | E6: 0.06 | G6: 1.11 | H6: холодильник | I6: 5 | J6: 0.2
A7: 1.5 | B7: розетки | C7: 4 | D7: 0.14 | E7: 0.035 | G7: 1.3 | H7: свет | I7: 4 | J7: 0.14
A8: 1.6 | B8: розетки | C8: 5 | D8: 0.4 | E8: 0.08 | G8: 1.4 | H8: свет | I8: 1 | J8: 0.08
A9: 1.8 | B9: холодильник | C9: 1 | D9: 0.035 | E9: 0.035 | G9: 1.5 | H9: розетки | I9: 7 | J9: 0.32
A10: 1.9 | B10: холодильник | C10: 2 | D10: 0.02 | E10: 0.01 | G10: 1.6 | H10: розетки | I10: 5 | J10: 0.4
A11: 1.10 | B11: розетки | C11: 3 | D11: 0.18 | E11: 0.06 | G11: 1.8 | H11: холодильник | I11: 1 | J11: 0.035
A12: 1.11 | B12: холодильник | C12: 4 | D12: 0.14 | E12: 0.035 | G12: 1.9 | H12: холодильник | I12: 2 | J12: 0.02
A13: 1.11 | B13: холодильник | C13: 1 | D13: 0.06 | E13: 0.06 | G13: Общий итог | I13: 33 | J13: 1.55
B17: потребитель | C17: КОЛ-ВО | D17: МОЩНОСТЬ
A18: 1.1 | C18: 5 | D18: 0.175
A19: 1.3 | C19: 4 | D19: 0.14
A20: 1.4 | C20: 1 | D20: 0.08
A21: 1.5 | C21: 7 | D21: 0.32
A22: 1.6 | C22: 5 | D22: 0.4
A23: 1.8 | C23: 1 | D23: 0.035
A24: 1.9 | C24: 2 | D24: 0.02
A25: 1.10 | C25: 3 | D25: 0.18
A26: 1.11 | C26: 5 | D26: 0.2
